fUSD/lending_fUSD_20250530
["ID","MTS","AMOUNT","RATE_DAILY","PERIOD"]
[363075044,1748567458257,-298.744033,0.00022191,7]
[363075045,1748567458266,-298.744033,0.00022191,7]
[363075046,1748567458275,-732.23,0.00022191,2]
[363075047,1748567458283,-298.744033,0.00022191,7]
[363075048,1748567458292,-1192.49,0.00022191,2]
[363075049,1748567458300,-599.95,0.00022191,2]
[363075050,1748567458308,-420.0,0.00022191,2]
[363075051,1748567458317,-538.81,0.00022191,2]
[363075052,1748567458325,-330.61783498,0.00022191,2]
[363075053,1748567458333,-420.0,0.00022191,2]
[363075054,1748567458342,-420.0,0.00022191,2]
[363075055,1748567458350,-420.0,0.00022191,2]
[363075056,1748567458359,-420.0,0.00022191,2]
[363075057,1748567458367,-442.59,0.00022191,2]
[363075058,1748567458375,-3038.57,0.00022191,2]
[363075059,1748567458382,-823.41,0.00022191,2]
[363075060,1748567458388,-5212.23,0.00022191,2]
[363075061,1748567458397,-353.569563,0.00022191,7]
[363075062,1748567458407,-353.569563,0.00022191,7]
[363075063,1748567458417,-420.0,0.00022191,2]
[363075064,1748567458427,-353.569563,0.00022191,7]
[363075065,1748567458436,-1225.66,0.00022191,2]
[363075066,1748567458445,-1668.73,0.00022191,2]
[363075067,1748567458454,-552.98,0.00022191,2]
[363075068,1748567458463,-420.0,0.00022191,2]
[363075069,1748567458473,-911.73,0.00022191,2]
[363075070,1748567458484,-420.0,0.00022191,2]
[363075071,1748567458493,-353.569563,0.00022191,7]
[363075072,1748567458502,-353.569563,0.00022191,7]
[363075073,1748567458511,-353.569563,0.00022191,7]
[363075074,1748567458521,-420.0,0.00022191,2]
[363075075,1748567458530,-1075.02,0.00022191,2]
[363075076,1748567458539,-420.0,0.00022191,2]
[363075077,1748567458548,-449.21,0.00022191,2]
[363075078,1748567458557,-556.57,0.00022191,2]
[363075079,1748567458567,-779.47,0.00022191,2]
[363075080,1748567458576,-420.0,0.00022191,2]
[363075081,1748567458585,-786.6,0.00022191,2]
[363075082,1748567458595,-765.45,0.00022191,2]
[363075083,1748567458604,-420.0,0.00022191,2]
[363075084,1748567458613,-420.0,0.00022191,2]
[363075085,1748567458623,-1345.94,0.00022191,2]
[363075086,1748567458632,-420.0,0.00022191,2]
[363075087,1748567458641,-1000.0,0.00022191,2]
[363075088,1748567458650,-596.41,0.00022191,2]
[363075089,1748567458659,-151.0,0.00022191,7]
[363075090,1748567458668,-431.40683145,0.00022191,2]
[363075091,1748567458677,-1095.41209446,0.00022191,2]
[363075092,1748567458690,-1157.2561,0.00022191,2]
[363075093,1748567458717,-420.0,0.00021917,2]
[363075094,1748567458727,-40.88180554,0.00022191,2]
[363075095,1748567458739,-718.92461895,0.00022191,2]
[363075096,1748567458751,-544.09538105,0.00022191,2]
[363075097,1748567458760,-420.0,0.00022191,2]
[363075098,1748567458770,-420.0,0.00022191,2]
[363075099,1748567458780,-3791.90461895,0.00022191,2]
[363075100,1748567458792,-22055.28538105,0.00022191,2]
[363075101,1748567458802,-3007.53,0.00022191,2]
[363075102,1748567458813,-462.82,0.00022191,2]
[363075103,1748567458823,-1304.85,0.00022191,2]
[363075104,1748567458835,-450.59,0.00022191,2]
[363075105,1748567458845,-1797.36,0.00022191,2]
[363075106,1748567458854,-1328.87,0.00022191,2]
[363075107,1748567458864,-420.0,0.00022191,2]
[363075108,1748567458873,-4821.33,0.00022191,2]
[363075109,1748567458882,-460.15,0.00022191,2]
[363075110,1748567458892,-1795.69,0.00022191,2]
[363075111,1748567458901,-1572.76,0.00022191,2]
[363075112,1748567458911,-2085.62,0.00022191,2]
[363075113,1748567458920,-420.0,0.00022191,2]
[363075114,1748567458930,-420.0,0.00022191,2]
[363075115,1748567458939,-420.0,0.00022191,2]
[363075116,1748567458948,-420.0,0.00022191,2]
[363075117,1748567458958,-44092.13,0.00022191,2]
[363075118,1748567458967,-420.0,0.00022191,2]
[363075119,1748567458977,-636.11,0.00022191,2]
[363075120,1748567458990,-770.08,0.00022191,2]
[363075121,1748567459000,-420.0,0.00022191,2]
[363075122,1748567459012,-3197.05,0.00022191,2]
[363075123,1748567459022,-1656.4,0.00022191,2]
[363075124,1748567459031,-980.14,0.00022191,2]
[363075125,1748567459042,-870.81,0.00022191,2]
[363075126,1748567459052,-420.0,0.00022191,2]
[363075127,1748567459062,-420.0,0.00022191,2]
[363075128,1748567459071,-507.78215716,0.00022191,2]
[363075129,1748567459082,-8762.31,0.00022191,2]
[363075130,1748567459092,-420.0,0.00022191,2]
[363075131,1748567459102,-1557.81,0.00022191,2]
[363075132,1748567459111,-420.0,0.00022191,2]
[363075133,1748567459121,-420.0,0.00022191,2]
[363075134,1748567459130,-328.3,0.00022191,2]
[363075135,1748567459140,-420.0,0.00022191,2]
[363075136,1748567459149,-420.0,0.00022191,2]
[363075137,1748567459159,-420.0,0.00022191,2]
[363075138,1748567459169,-1051.03,0.00022191,2]
[363075139,1748567459182,-151.0,0.00022191,7]
[363075140,1748567459193,-2418.63,0.00022191,2]
[363075141,1748567459203,-151.0,0.00022191,7]
[363075142,1748567459212,-437.5,0.00022191,2]
[363075143,1748567459222,-151.0,0.00022191,7]
[363075144,1748567459232,-1439.34,0.00022191,2]
[363075145,1748567459241,-433.48,0.00022191,2]
[363075146,1748567459251,-2274.64,0.00022191,2]
[363075147,1748567459260,-1262.96,0.00022191,2]
[363075148,1748567459270,-3186.72,0.00022191,2]
[363075149,1748567459279,-420.0,0.00022191,2]
[363075150,1748567459289,-2115.8,0.00022191,2]
[363075151,1748567459298,-910.82,0.00022191,2]
[363075152,1748567459308,-420.0,0.00022191,2]
[363075153,1748567459317,-668.74,0.00022191,2]
[363075154,1748567459327,-1909.89,0.00022191,2]
[363075155,1748567459336,-1563.07,0.00022191,2]
[363075156,1748567459346,-420.0,0.00022191,2]
[363075157,1748567459355,-2121.17,0.00022191,2]
[363075158,1748567459364,-554.31,0.00022191,2]
[363075159,1748567459373,-1031.01,0.00022191,2]
[363075160,1748567459383,-1919.59,0.00022191,2]
[363075161,1748567459392,-805.61,0.00022191,2]
[363075162,1748567459402,-6617.09,0.00022191,2]
[363075163,1748567459412,-805.47,0.00022191,2]
[363075164,1748567459421,-420.0,0.00022191,2]
[363075165,1748567459430,-202.97,0.00022191,2]
[363075166,1748567459440,-5188.45,0.00022191,2]
[363075167,1748567459449,-420.0,0.00022191,2]
[363075168,1748567459458,-914.04,0.00022191,2]
[363075169,1748567459468,-420.0,0.00022191,2]
[363075170,1748567459478,-1429.17,0.00022191,2]
[363075171,1748567459492,-420.0,0.00022191,2]
[363075172,1748567459501,-420.0,0.00022191,2]
[363075173,1748567459511,-476.75,0.00022191,2]
[363075174,1748567459521,-619.86,0.00022191,2]
[363075175,1748567459531,-420.0,0.00022191,2]
[363075176,1748567459544,-1501.3,0.00022191,2]
[363075177,1748567459554,-897.29,0.00022191,2]
[363075178,1748567459567,-420.0,0.00022191,2]
[363075179,1748567459582,-1237.09608,0.00022191,2]
[363075180,1748567459593,-534.49,0.00022191,2]
[363075181,1748567459603,-420.0,0.00022191,2]
[363075182,1748567459614,-453.04,0.00022191,2]
[363075183,1748567459624,-3705.47,0.00022191,2]
[363075184,1748567459634,-10052.21,0.00022191,2]
[363075185,1748567459644,-628.59,0.00022191,2]
[363075186,1748567459653,-420.0,0.00022191,2]
[363075187,1748567459663,-420.0,0.00022191,2]
[363075188,1748567459672,-1670.03,0.00022191,2]
[363075189,1748567459682,-4353.91,0.00022191,2]
[363075190,1748567459691,-420.0,0.00022191,2]
[363075191,1748567459700,-643.34,0.00022191,2]
[363075192,1748567459710,-420.0,0.00022191,2]
[363075193,1748567459719,-581.15,0.00022191,2]
[363075194,1748567459728,-1913.49,0.00022191,2]
[363075195,1748567459740,-1106.53,0.00022191,2]
[363075196,1748567459750,-534.27,0.00022191,2]
[363075197,1748567459759,-420.0,0.00022191,2]
[363075198,1748567459769,-420.0,0.00022191,2]
[363075199,1748567459779,-420.0,0.00022191,2]
[363075200,1748567459788,-615.95,0.00022191,2]
[363075201,1748567459797,-998.74,0.00022191,2]
[363075202,1748567459807,-3046.65,0.00022191,2]
[363075203,1748567459816,-3040.97,0.00022191,2]
[363075204,1748567459825,-420.0,0.00022191,2]
[363075205,1748567459835,-547.23,0.00022191,2]
[363075206,1748567459844,-742.98,0.00022191,2]
[363075207,1748567459853,-1578.03,0.00022191,2]
[363075208,1748567459863,-736.75,0.00022191,2]
[363075209,1748567459872,-888.77,0.00022191,2]
[363075210,1748567459881,-420.0,0.00022191,2]
[363075211,1748567459891,-6258.83638179,0.00022191,2]
[363075212,1748567459905,-1280.54913917,0.00022191,2]
[363075213,1748567459917,-944.86447904,0.00022191,2]
[363075214,1748567459926,-878.51,0.00022191,2]
[363075215,1748567459936,-629.54,0.00022191,2]
[363075216,1748567459945,-420.0,0.00022191,2]
[363075217,1748567459955,-6125.67,0.00022191,2]
[363075218,1748567459964,-420.0,0.00022191,2]
[363075219,1748567459974,-14798.19,0.00022191,2]
[363075220,1748567459989,-420.0,0.00022191,2]
[363075221,1748567460003,-1654.58,0.00022191,2]
[363075222,1748567460014,-2178.38,0.00022191,2]
[363075223,1748567460023,-992.17,0.00022191,2]
[363075224,1748567460034,-520.1,0.00022191,2]
[363075225,1748567460046,-420.0,0.00022191,2]
[363075226,1748567460057,-2260.04,0.00022191,2]
[363075227,1748567460067,-420.0,0.00022191,2]
[363075228,1748567460080,-1668.06,0.00022191,2]
[363075229,1748567460091,-420.0,0.00022191,2]
[363075230,1748567460102,-2220.69,0.00022191,2]
[363075231,1748567460112,-1348.20552096,0.00022191,2]
[363075232,1748567460123,-515.44,0.00022191,2]
[363075233,1748567460239,-1800.0000001,0.00022191,2]
[363075234,1748567460264,-3489.99999,0.00022191,2]
[363075235,1748567460323,-302.51870817,0.00022191,2]
[363075236,1748567460334,-262.28265096,0.00022191,2]
[363075237,1748567460867,-420.0,0.00021917,2]
[363075238,1748567460876,-628.7,0.00021917,2]
[363075239,1748567460888,-448.29,0.00021917,2]
[363075240,1748567460899,-420.0,0.00021917,2]
[363075241,1748567460911,-392.56509987,0.00022091,2]
[363075242,1748567460929,-369.43490013,0.00022091,2]
[363075243,1748567460939,-7526.21312981,0.00022191,2]
[363075244,1748567460949,-920.61,0.00022191,2]
[363075245,1748567460958,-420.0,0.00022191,2]
[363075246,1748567460968,-1125.76,0.00022191,2]
[363075247,1748567460977,-420.0,0.00022191,2]
[363075248,1748567460989,-1711.99,0.00022191,2]
[363075249,1748567460999,-667.39,0.00022191,2]
[363075250,1748567461016,-1859.03,0.00022191,2]
[363075251,1748567461035,-420.0,0.00022191,2]
[363075252,1748567461055,-4698.59,0.00022191,2]
[363075253,1748567461066,-471.01,0.00022191,2]
[363075254,1748567461076,-861.94,0.00022191,2]
[363075255,1748567461085,-3882.28,0.00022191,2]
[363075256,1748567461095,-1428.18,0.00022191,2]
[363075257,1748567461105,-1412.53,0.00022191,2]
[363075258,1748567461115,-641.4,0.00022191,2]
[363075259,1748567461125,-5022.28,0.00022191,2]
[363075260,1748567461134,-1531.53,0.00022191,2]
[363075261,1748567461143,-420.0,0.00022191,2]
[363075262,1748567461372,-1015.32,0.00022191,2]
[363075263,1748567461383,-818.0,0.00022191,2]
[363075264,1748567461394,-476.13,0.00022191,2]
[363075265,1748567461404,-1204.02,0.00022191,2]
[363075266,1748567461414,-504.43091744,0.00022191,2]
[363075267,1748567461424,-15309.96,0.00022191,2]
[363075268,1748567461434,-28979.02,0.00022191,2]
[363075269,1748567461443,-552.24,0.00022191,2]
[363075270,1748567461453,-2359.55,0.00022191,2]
[363075271,1748567461462,-151.0,0.00022191,7]
[363075272,1748567461472,-151.0,0.00022191,7]
[363075273,1748567461484,-151.0,0.00022191,7]
[363075274,1748567461496,-467.49,0.00022191,2]
[363075275,1748567461506,-420.0,0.00022191,2]
[363075276,1748567461515,-420.0,0.00022191,2]
[363075277,1748567461525,-1224.72,0.00022191,2]
[363075278,1748567461534,-420.0,0.00022191,2]
[363075279,1748567461544,-465.7,0.00022191,2]
[363075280,1748567461554,-151.0,0.00022191,7]
[363075281,1748567461564,-736.87,0.00022191,2]
[363075282,1748567461573,-151.0,0.00022191,7]
[363075283,1748567461583,-151.0,0.00022191,7]
[363075284,1748567461592,-7648.34,0.00022191,2]
[363075285,1748567461602,-2116.12,0.00022191,2]
[363075286,1748567461612,-420.0,0.00022191,2]
[363075287,1748567461622,-422.35,0.00022191,2]
[363075288,1748567461632,-430.86,0.00022191,2]
[363075289,1748567461641,-420.0,0.00022191,2]
[363075290,1748567461651,-420.0,0.00022191,2]
[363075291,1748567461660,-821.75,0.00022191,2]
[363075292,1748567461670,-3472.42,0.00022191,2]
[363075293,1748567461680,-420.0,0.00022191,2]
[363075294,1748567461689,-420.0,0.00022191,2]
[363075295,1748567461699,-1672.67,0.00022191,2]
[363075296,1748567461707,-420.0,0.00022191,2]
[363075297,1748567461717,-1699.51,0.00022191,2]
[363075298,1748567461726,-996.77,0.00022191,2]
[363075299,1748567461738,-9594.7,0.00022191,2]
[363075300,1748567461748,-1175.24,0.00022191,2]
[363075301,1748567461757,-3548.85,0.00022191,2]
[363075302,1748567461766,-667.05,0.00022191,2]
[363075303,1748567461776,-1181.19,0.00022191,2]
[363075304,1748567461786,-1529.05,0.00022191,2]
[363075305,1748567461795,-577.8,0.00022191,2]
[363075306,1748567461805,-601.13,0.00022191,2]
[363075307,1748567461814,-3832.82,0.00022191,2]
[363075308,1748567461823,-420.0,0.00022191,2]
[363075309,1748567461832,-3990.23,0.00022191,2]
[363075310,1748567461841,-420.0,0.00022191,2]
[363075311,1748567461851,-1381.51,0.00022191,2]
[363075312,1748567461860,-1130.63,0.00022191,2]
[363075313,1748567461870,-2963.63,0.00022191,2]
[363075314,1748567461879,-151.0,0.00022191,7]
[363075315,1748567461889,-151.0,0.00022191,7]
[363075316,1748567461899,-875.63,0.00022191,2]
[363075317,1748567461908,-151.0,0.00022191,7]
[363075318,1748567461917,-526.65,0.00022191,2]
[363075319,1748567461927,-1423.77,0.00022191,2]
[363075320,1748567461936,-420.0,0.00022191,2]
[363075321,1748567461946,-435.76487929,0.00022191,2]
[363075322,1748567461955,-1758.76,0.00022191,2]
[363075323,1748567461964,-2064.34,0.00022191,2]
[363075324,1748567461974,-420.0,0.00022191,2]
[363075325,1748567461985,-151.0,0.00022191,7]
[363075326,1748567461994,-151.0,0.00022191,7]
[363075327,1748567462006,-420.0,0.00022191,2]
[363075328,1748567462016,-202.462397,0.00022191,7]
[363075329,1748567462025,-1315.8,0.00022191,2]
[363075330,1748567462035,-420.0,0.00022191,2]
[363075331,1748567462045,-4857.07,0.00022191,2]
[363075332,1748567462055,-979.36,0.00022191,2]
[363075333,1748567462064,-420.0,0.00022191,2]
[363075334,1748567462073,-697.13,0.00022191,2]
[363075335,1748567462083,-420.0,0.00022191,2]
[363075336,1748567462093,-2877.93,0.00022191,2]
[363075337,1748567462103,-780.7,0.00022191,2]
[363075338,1748567462112,-4617.04,0.00022191,2]
[363075339,1748567462122,-570.8,0.00022191,2]
[363075340,1748567462132,-828.05,0.00022191,2]
[363075341,1748567462141,-682.18,0.00022191,2]
[363075342,1748567462151,-4628.25,0.00022191,2]
[363075343,1748567462159,-730.07,0.00022191,2]
[363075344,1748567462169,-796.59,0.00022191,2]
[363075345,1748567462179,-167.27599651,0.00022191,2]
[363075346,1748567462189,-420.0,0.00022191,2]
[363075347,1748567462198,-801.76,0.00022191,2]
[363075348,1748567462208,-423.71453212,0.00022191,2]
[363075349,1748567462218,-483.63,0.00022191,2]
[363075350,1748567462227,-204.09837694,0.00022191,2]
[363075351,1748567462240,-420.0,0.00022191,2]
[363075352,1748567462250,-194.88997209,0.00022191,2]
[363075353,1748567462262,-154.585807,0.00022191,7]
[363075354,1748567462273,-3302.28,0.00022191,2]
[363075355,1748567462283,-420.0,0.00022191,2]
[363075356,1748567462293,-6670.97,0.00022191,2]
[363075357,1748567462304,-420.0,0.00022191,2]
[363075358,1748567462314,-420.0,0.00022191,2]
[363075359,1748567462324,-1928.51,0.00022191,2]
[363075360,1748567462335,-3752.85,0.00022191,2]
[363075361,1748567462346,-156.9366834,0.00022191,2]
[363075362,1748567462355,-1099.24,0.00022191,2]
[363075363,1748567462366,-420.0,0.00022191,2]
[363075364,1748567462376,-420.0,0.00022191,2]
[363075365,1748567462386,-634.09,0.00022191,2]
[363075366,1748567462396,-420.0,0.00022191,2]
[363075367,1748567462407,-1287.72,0.00022191,2]
[363075368,1748567462417,-1612.92,0.00022191,2]
[363075369,1748567462427,-420.0,0.00022191,2]
[363075370,1748567462436,-1050.04,0.00022191,2]
[363075371,1748567462446,-420.0,0.00022191,2]
[363075372,1748567462456,-619.03,0.00022191,2]
[363075373,1748567462466,-420.0,0.00022191,2]
[363075374,1748567462475,-420.0,0.00022191,2]
[363075375,1748567462487,-420.0,0.00022191,2]
[363075376,1748567462497,-1608.58,0.00022191,2]
[363075377,1748567462507,-423.6,0.00022191,2]
[363075378,1748567462517,-3736.61,0.00022191,2]
[363075379,1748567462526,-420.0,0.00022191,2]
[363075380,1748567462535,-8595.29,0.00022191,2]
[363075381,1748567462545,-612.6,0.00022191,2]
[363075382,1748567462555,-420.0,0.00022191,2]
[363075383,1748567462565,-168673.41,0.00022191,2]
[363075384,1748567462574,-7535.6,0.00022191,2]
[363075385,1748567462583,-678.35,0.00022191,2]
[363075386,1748567462593,-3008.59,0.00022191,2]
[363075387,1748567462602,-420.0,0.00022191,2]
[363075388,1748567462611,-420.0,0.00022191,2]
[363075389,1748567462621,-420.0,0.00022191,2]
[363075390,1748567462630,-1274.75,0.00022191,2]
[363075391,1748567462640,-420.0,0.00022191,2]
[363075392,1748567462649,-420.0,0.00022191,2]
[363075393,1748567462658,-900.5,0.00022191,2]
[363075394,1748567462668,-420.0,0.00022191,2]
[363075395,1748567462678,-420.0,0.00022191,2]
[363075396,1748567462687,-420.0,0.00022191,2]
[363075397,1748567462697,-11612.51,0.00022191,2]
[363075398,1748567462707,-715.71,0.00022191,2]
[363075399,1748567462716,-1371.33,0.00022191,2]
[363075400,1748567462725,-665.27,0.00022191,2]
[363075401,1748567462737,-420.0,0.00022191,2]
[363075402,1748567462746,-515.1,0.00022191,2]
[363075403,1748567462755,-4332.43,0.00022191,2]
[363075404,1748567462765,-420.0,0.00022191,2]
[363075405,1748567462775,-1711.45,0.00022191,2]
[363075406,1748567462785,-13387.63,0.00022191,2]
[363075407,1748567462795,-1138.6,0.00022191,2]
[363075408,1748567462804,-1631.67,0.00022191,2]
[363075409,1748567462814,-1113.43,0.00022191,2]
[363075410,1748567462823,-420.0,0.00022191,2]
[363075411,1748567462832,-1556.17,0.00022191,2]
[363075412,1748567462842,-420.0,0.00022191,2]
[363075413,1748567462851,-420.0,0.00022191,2]
[363075414,1748567462861,-464.55,0.00022191,2]
[363075415,1748567462870,-1400.98,0.00022191,2]
[363075416,1748567462881,-1797.41,0.00022191,2]
[363075417,1748567462890,-6263.14,0.00022191,2]
[363075418,1748567462899,-420.0,0.00022191,2]
[363075419,1748567462909,-420.0,0.00022191,2]
[363075420,1748567462918,-420.0,0.00022191,2]
[363075421,1748567462927,-1076.99,0.00022191,2]
[363075422,1748567462936,-420.0,0.00022191,2]
[363075423,1748567462946,-359.0,0.00022192,7]
[363075424,1748567462955,-3937.27995464,0.00022198,2]
[363075425,1748567462964,-151.0,0.00022206,7]
[363075426,1748567462974,-151.0,0.00022213,7]
[363075427,1748567462982,-164.945247,0.00022213,7]
[363075428,1748567462993,-151.0,0.00022213,7]
[363075429,1748567463003,-574.77071874,0.00022264,2]
[363075430,1748567463016,-166.66,0.00022284,2]
[363075431,1748567463025,-500.0,0.00022287,2]
[363075432,1748567463035,-151.0,0.00022335,7]
[363075433,1748567463045,-151.0,0.00022335,7]
[363075434,1748567463056,-300.0,0.00022361,2]
[363075435,1748567463067,-258.681688,0.00022362,7]
[363075436,1748567463076,-258.681688,0.00022362,7]
[363075437,1748567463087,-508.059644,0.00022362,7]
[363075438,1748567463097,-508.059644,0.00022362,7]
[363075439,1748567463107,-298.744033,0.00022362,7]
[363075440,1748567463118,-298.744033,0.00022362,7]
[363075441,1748567463129,-548.52,0.00022362,2]
[363075442,1748567463139,-548.52,0.00022362,2]
[363075443,1748567463150,-548.52,0.00022362,2]
[363075444,1748567463160,-548.52,0.00022362,2]
[363075445,1748567463171,-548.52,0.00022362,2]
[363075446,1748567463182,-548.52,0.00022362,2]
[363075447,1748567463193,-548.52,0.00022362,2]
[363075448,1748567463203,-548.52,0.00022362,2]
[363075449,1748567463213,-548.52,0.00022362,2]
[363075450,1748567463223,-548.52,0.00022362,2]
[363075451,1748567463235,-548.52,0.00022362,2]
[363075452,1748567463245,-548.52,0.00022362,2]
[363075453,1748567463256,-548.52,0.00022362,2]
[363075454,1748567463266,-548.52,0.00022362,2]
[363075455,1748567463484,-548.55140429,0.00022362,2]
[363075456,1748567463495,-151.0,0.00022362,7]
[363075457,1748567463505,-151.0,0.00022362,7]
[363075458,1748567463515,-151.0,0.00022363,7]
[363075459,1748567463525,-151.0,0.00022363,7]
[363075460,1748567463535,-772.068381,0.00022363,7]
[363075461,1748567463545,-772.068381,0.00022363,7]
[363075462,1748567463555,-151.0,0.00022363,7]
[363075463,1748567463564,-151.0,0.00022363,7]
[363075464,1748567463574,-151.0,0.00022363,7]
[363075465,1748567463583,-551.155947,0.00022363,7]
[363075466,1748567463593,-551.155947,0.00022363,7]
[363075467,1748567463603,-151.0,0.00022363,7]
[363075468,1748567463612,-151.0,0.00022363,7]
[363075469,1748567463621,-151.0,0.00022364,7]
[363075470,1748567463631,-151.0,0.00022364,7]
[363075471,1748567463641,-151.0,0.00022364,7]
[363075472,1748567463651,-151.0,0.00022364,7]
[363075473,1748567463662,-161.41357888,0.00022365,2]
[363075474,1748567463671,-150.0,0.000224,2]
[363075475,1748567463681,-1810.0,0.000224,2]
[363075476,1748567463691,-767.0,0.000224,2]
[363075477,1748567463700,-237.0,0.000224,2]
[363075478,1748567463710,-32534.30211872,0.000224,2]
[363075479,1748567463725,-7465.69788128,0.000224,2]
[363075480,1748567463736,-375.0,0.000224,2]
[363075481,1748567463746,-200.0,0.00022421,2]
[363075482,1748567463756,-500.0,0.00022454,2]
[363075483,1748567463766,-151.0,0.00022455,7]
[363075484,1748567463776,-153.140379,0.00022455,7]
[363075485,1748567463785,-151.0,0.00022455,7]
[363075486,1748567463795,-151.0,0.00022455,7]
[363075487,1748567463804,-151.0,0.00022455,7]
[363075488,1748567463814,-174.650608,0.00022455,7]
[363075489,1748567463823,-151.0,0.00022455,7]
[363075490,1748567463832,-151.0,0.00022455,7]
[363075491,1748567463842,-151.0,0.00022455,7]
[363075492,1748567463852,-151.0,0.00022455,7]
[363075493,1748567463862,-151.0,0.00022455,7]
[363075494,1748567463872,-202.793408,0.00022455,7]
[363075495,1748567463882,-202.793408,0.00022455,7]
[363075496,1748567463891,-150.0,0.00022462,2]
[363075497,1748567463901,-150.0,0.00022462,2]
[363075498,1748567463911,-300.0,0.00022464,2]
[363075499,1748567463921,-9360.94,0.00022464,2]
[363075500,1748567463931,-152.484664,0.00022464,7]
[363075501,1748567463941,-151.0,0.00022464,7]
[363075502,1748567463951,-409.26,0.00022464,2]
[363075503,1748567463961,-18724.83820477,0.00022465,3]
[363075504,1748567463990,-374.5451034,0.00022465,3]
[363075505,1748567464003,-2519.76,0.00022465,3]
[363075506,1748567464017,-2318.0076787,0.00022465,3]
[363075507,1748567464029,-105443.84178716,0.00022465,3]
[363075508,1748567464050,-66103.26295618,0.00022465,3]
[363075509,1748567464066,-2951.6571647,0.00022465,3]
[363075510,1748567464078,-784237.4152605,0.00022465,3]
[363075511,1748567464090,-6954.2940552,0.00022465,3]
[363075512,1748567464109,-371.260055,0.00022465,3]
[363075513,1748567464719,-420.0,0.00021917,2]
[363075514,1748567464729,-420.11956194,0.00021917,2]
[363075515,1748567464761,-554.09043806,0.00021917,2]
[363075516,1748567464770,-420.0,0.00021917,2]
[363075517,1748567464780,-76.90956194,0.00021917,2]
[363075518,1748567464790,-256.2485,0.00021917,2]
[363075519,1748567464802,-86.84193806,0.00021917,2]
[363075520,1748567464811,-279.46447744,0.00022191,2]
[363075521,1748567464823,-140.53552256,0.00022191,2]
[363075522,1748567464832,-420.0,0.00022191,2]
[363075523,1748567464842,-1021.95712636,0.00022465,3]
[363075524,1748567464859,-1149.14969212,0.00022465,3]
[363075525,1748567464913,-10517.9285185,0.00022465,3]
[363075526,1748567464925,-5248.147,0.00022465,3]
[363075527,1748567465661,-927.35526361,0.00022465,3]
[363075528,1748567465673,-10941.39285,0.00022465,3]
[363075529,1748567465684,-5182.00000002,0.00022465,3]
[363075530,1748567465699,-420.0,0.00022191,2]
[363075531,1748567465709,-6134.7,0.00022465,3]
[363075532,1748567465721,-38606.71833841,0.00022465,3]
[363075533,1748567465734,-1044.34112615,0.00022465,3]
[363075534,1748567465750,-2997.72593486,0.00022465,3]
[363075535,1748567465762,-646.59921573,0.00022465,3]
[363075536,1748567465774,-386.75782244,0.00022465,3]
[363075537,1748567465785,-343.74499995,0.00022465,3]
[363075538,1748567465801,-884.00000994,0.00022465,3]
[363075547,1748567764315,993.57,0.00019088,2]
[363075549,1748567799461,156.64,0.00013699,2]
[363075550,1748568095776,-189.37329452,0.00020296,2]
[363075551,1748568102732,-194.81840216,0.00020296,2]
[363075552,1748568106689,-187.50761115,0.0002029,2]